bitfinex-derivatives/quotes_ETHF0:USTF0_20250910
["timestamp","ask_amount","ask_price","bid_price","bid_amount"]
[1757512129725,0.4389,4434.0,4433.4,0.31634286]
[1757512130023,0.6118,4433.6,4433.5,0.31634286]
[1757512130217,0.9138,4433.6,4433.5,0.31634286]
[1757512130424,8.1216,4433.6,4433.5,0.31634286]
[1757512131223,8.1216,4433.6,4433.5,4.286e-05]
[1757512131626,4.9128,4433.6,4433.5,4.286e-05]
[1757512131820,0.4389,4434.4,4433.5,0.26619307]
[1757512132020,0.4389,4435.1,4433.9,3.2078]
[1757512132222,0.7399,4435.1,4434.5,3.2078]
[1757512132429,0.7399,4435.1,4435.0,3.2078]
[1757512132625,0.7399,4435.1,4434.4,3.2078]
[1757512132925,0.7399,4435.1,4433.9,3.2078]
[1757512133125,3.2078,4435.3,4434.4,0.428]
[1757512133425,0.4389,4436.6,4435.0,3.2078]
[1757512133622,0.4389,4436.6,4435.6,3.2078]
[1757512133826,3.2078,4437.2,4436.5,0.40566]
[1757512134122,0.4389,4436.5,4435.7,6.191241]
[1757512134325,0.4389,4436.5,4435.8,0.26602685]
[1757512134519,0.4389,4436.5,4435.9,0.26602685]
[1757512134724,0.4389,4436.5,4435.1,3.2078]
[1757512134919,0.4389,4436.0,4435.2,0.2661005]
[1757512135120,0.4389,4436.0,4435.1,3.2078]
[1757512135121,0.7399,4436.0,4435.3,0.2661005]
[1757512135423,0.7399,4436.0,4435.4,0.2661005]
[1757512135623,0.66435,4435.9,4435.1,3.2078]
[1757512135823,0.4389,4435.5,4435.2,0.26640949]
[1757512136026,0.4389,4435.1,4433.9,3.2078]
[1757512136324,0.4389,4434.9,4434.0,0.26657581]
[1757512136525,0.301,4434.8,4434.1,0.26657581]
[1757512136736,0.1729,4434.4,4433.4,3.2078]
[1757512136929,0.4389,4434.3,4433.5,0.26658956]
[1757512137128,0.7389,4434.3,4433.6,0.26658956]
[1757512137324,0.4389,4433.8,4432.9,3.2078]
[1757512137524,0.301,4433.7,4433.0,0.26639484]
[1757512137824,0.1729,4433.6,4433.1,0.26639484]
[1757512138026,0.4389,4433.3,4432.8,0.17144726]
[1757512138322,3.6467,4432.9,4432.8,0.17144726]
[1757512138528,3.9467,4432.9,4432.8,0.17144726]
[1757512138725,3.9467,4432.9,4431.9,3.2078]
[1757512138726,0.4389,4432.7,4431.9,3.2078]
[1757512138920,0.4389,4432.7,4432.0,0.26642365]
[1757512139125,0.3,4432.7,4432.4,3.2078]
[1757512139532,0.4389,4432.6,4431.9,3.6358]
[1757512139827,0.4389,4432.6,4432.0,0.26623993]
[1757512140124,0.4389,4433.3,4432.4,3.2078]
[1757512140326,0.299,4433.2,4432.4,3.2078]
[1757512140524,0.4389,4433.1,4431.9,3.2078]
[1757512140725,3.2078,4432.4,4431.4,3.2078]
[1757512140924,0.4389,4432.3,4431.5,0.26622303]
[1757512141124,0.1729,4433.6,4432.2,3.2078]
[1757512141125,0.3,4433.0,4432.2,3.2078]
[1757512141326,0.3,4433.0,4432.8,3.6358]
[1757512141526,3.2078,4433.8,4432.9,0.428]
[1757512141730,0.4389,4434.7,4433.7,3.2078]
[1757512141929,35.6938,4435.5,4434.1,3.2078]
[1757512141930,32.486,4435.5,4434.1,3.2078]
[1757512142229,3.2078,4435.9,4434.6,3.2078]
[1757512142431,3.2078,4435.9,4435.1,3.2078]
[1757512142432,0.301,4435.4,4435.1,3.2078]
[1757512142733,3.5088,4436.5,4435.4,0.40575]
[1757512143029,0.301,4436.5,4435.8,3.2078]
[1757512143229,32.487,4436.6,4436.4,0.428]
[1757512143430,32.487,4436.6,4436.3,3.2078]
[1757512143431,32.787,4436.6,4436.5,0.31156908]
[1757512143738,0.1729,4438.4,4436.6,0.428]
[1757512143739,3.2078,4438.4,4436.6,0.428]
[1757512144031,3.9467,4437.9,4436.6,0.73956908]
[1757512144240,0.3,4437.1,4436.6,0.31156908]
[1757512144436,3.4304,4436.7,4436.6,0.31156908]
[1757512144629,3.8693,4436.7,4436.6,0.31156908]
[1757512144934,7.8693,4436.7,4435.1,0.428]
[1757512145140,3.2078,4436.0,4434.5,3.2078]
[1757512145323,0.3,4435.9,4434.5,3.2078]
[1757512145529,3.2078,4435.8,4434.5,3.2078]
[1757512145833,3.5078,4435.8,4434.5,3.2078]
[1757512146036,0.2227,4435.7,4434.5,3.2078]
[1757512146731,3.2078,4435.3,4434.5,3.2078]
[1757512147037,3.2078,4434.8,4433.7,3.2078]
[1757512147232,0.3853,4434.6,4433.6,0.428]
[1757512147428,0.299,4434.5,4433.7,3.2078]
[1757512147635,0.2227,4435.7,4434.4,3.2078]
[1757512147636,3.2078,4435.4,4434.4,3.2078]
[1757512147933,0.5217,4435.7,4434.9,3.6358]
[1757512148633,0.5217,4435.7,4433.4,0.58613]
[1757512148634,3.2078,4435.3,4434.3,3.2078]
[1757512148939,0.299,4435.2,4433.7,3.2078]
[1757512149238,3.2078,4434.7,4433.2,3.2078]
[1757512149439,3.5931,4434.2,4433.2,3.2078]
[1757512149631,0.299,4434.1,4433.2,3.2078]
[1757512149828,3.2078,4433.7,4432.6,3.2078]
[1757512150034,0.299,4433.6,4432.6,3.2078]
[1757512150331,0.299,4433.6,4432.3,0.428]
[1757512150531,0.49951454,4433.5,4432.3,0.428]
[1757512150831,36.0771,4435.2,4433.6,0.40591]
[1757512151036,0.79747148,4435.1,4434.1,3.2078]
[1757512151334,3.2078,4434.6,4433.7,0.428]
[1757512151533,0.299,4434.5,4433.7,0.428]
[1757512152032,0.299,4434.5,4433.6,3.2078]
[1757512152232,3.5931,4434.6,4433.6,3.2078]
[1757512152434,0.298,4434.5,4433.6,3.2078]
[1757512152836,3.2078,4434.6,4433.6,3.2078]
[1757512153133,0.79848854,4434.5,4433.7,0.428]
[1757512153339,0.50048854,4434.4,4433.6,3.2078]
[1757512154235,3.2078,4434.1,4433.0,3.6358]
[1757512154435,3.2078,4433.5,4432.3,0.4324]
[1757512154643,0.297,4433.4,4432.3,0.4324]
[1757512154837,0.79876746,4433.4,4432.3,0.4324]
[1757512155133,0.50176746,4433.3,4432.3,0.4324]
[1757512155332,3.2078,4433.0,4432.3,0.4324]
[1757512155532,0.7990983,4432.9,4431.9,3.2078]
[1757512155736,0.5020983,4432.8,4431.9,3.2078]
[1757512155931,3.2078,4433.2,4432.4,3.2078]
[1757512156135,0.297,4433.7,4433.0,0.4324]
[1757512156636,0.297,4433.7,4433.4,3.2078]
[1757512156838,0.297,4433.7,4433.5,0.73286328]
[1757512157039,0.297,4433.7,4433.6,0.30046328]
[1757512157431,5.17842564,4433.7,4433.6,0.30046328]
[1757512157637,5.17842564,4433.7,4432.3,0.4324]
[1757512157833,0.50202564,4433.6,4432.6,3.2078]
[1757512158234,0.296,4433.5,4432.8,0.1759]
[1757512158539,0.79802564,4433.4,4432.8,0.1759]
[1757512158844,3.2078,4433.9,4433.2,3.2078]
[1757512159035,0.79799716,4433.8,4433.2,3.6402]
[1757512159241,0.50199716,4433.7,4433.2,3.2078]
[1757512159438,0.50199716,4433.6,4432.8,0.1759]
[1757512159735,0.50199716,4433.5,4432.8,0.1759]
[1757512159932,0.296,4433.8,4432.8,0.1759]
[1757512160137,3.2868,4433.4,4432.5,3.2078]
[1757512160339,3.2868,4432.9,4431.9,3.2078]
[1757512160538,0.79695436,4432.8,4431.9,3.2078]
[1757512160840,3.2078,4432.3,4431.3,3.6402]
[1757512161034,0.295,4432.2,4431.4,0.83851]
[1757512161241,3.2078,4432.9,4432.0,0.6083]
[1757512161441,0.295,4432.8,4432.1,0.4324]
[1757512162545,0.50167443,4432.7,4432.1,0.4324]
[1757512162748,0.294,4432.8,4432.7,0.4324]
[1757512164242,0.294,4432.8,4432.6,3.2078]
[1757512164446,0.294,4432.8,4432.6,3.6402]
[1757512164741,3.2078,4433.8,4432.6,3.2078]
[1757512164943,0.50180055,4433.7,4433.2,3.2078]
[1757512165141,0.293,4433.6,4433.3,0.4324]
[1757512165547,0.293,4434.1,4433.3,4.4324]
[1757512165847,0.293,4434.1,4434.0,0.4324]
[1757512166049,0.293,4434.1,4433.9,3.2078]
[1757512166243,0.50192184,4434.0,4433.3,3.6402]
[1757512166444,0.2255,4434.1,4434.0,0.40587]
[1757512166646,32.497,4436.3,4434.0,0.4324]
[1757512166848,3.2078,4435.8,4434.5,3.2078]
[1757512167147,0.8063222,4435.7,4434.5,3.2078]
[1757512167348,0.7948222,4435.6,4434.5,3.2078]
[1757512167545,3.5123,4435.2,4434.5,3.2078]
[1757512167745,0.7948222,4435.1,4434.5,3.2078]
[1757512167946,0.5018222,4435.0,4434.0,3.2078]
[1757512169640,0.5018222,4435.0,4433.4,3.2078]
[1757512169641,3.5123,4434.6,4433.4,3.2078]
[1757512169845,3.5123,4434.1,4433.4,3.2078]
[1757512170047,0.3045,4433.5,4432.5,0.4324]
[1757512170346,0.5018222,4433.4,4433.2,0.4324]
[1757512170547,0.292,4433.5,4433.2,0.4324]
[1757512170744,0.292,4433.5,4433.1,3.3837]
[1757512171247,32.495,4434.6,4433.2,0.4324]
[1757512171449,0.79397022,4434.5,4434.1,3.2078]
[1757512171647,0.292,4434.5,4434.1,3.2078]
[1757512171848,0.292,4434.5,4434.2,0.4324]
[1757512172053,0.50195791,4434.4,4434.2,0.4324]
[1757512172255,0.292,4434.5,4434.2,0.4324]
[1757512172450,0.50202217,4434.4,4434.2,0.4324]
[1757512172652,0.292,4434.5,4434.1,3.2078]
[1757512172851,0.3045,4434.3,4433.6,3.2078]
[1757512173059,0.50203349,4434.2,4433.6,3.2078]
[1757512173752,0.22554,4434.1,4433.6,3.2078]
[1757512174055,4.30533349,4434.0,4433.0,3.2078]
[1757512174264,4.30533349,4434.0,4432.7,0.4324]
[1757512174265,3.2078,4433.5,4432.7,0.4324]
[1757512174454,0.79303349,4433.4,4432.7,0.4324]
[1757512174650,0.50203349,4433.3,4432.7,0.4324]
[1757512174846,0.291,4433.2,4432.5,0.4324]
[1757512175162,32.495,4434.6,4433.0,0.4324]
[1757512175163,0.79203349,4433.1,4433.0,0.4324]
[1757512175546,0.29,4433.1,4433.0,0.4324]
[1757512175750,35.7028,4434.6,4433.1,0.6083]
[1757512176047,35.7028,4434.6,4434.2,0.4324]
[1757512176048,0.50342157,4434.5,4434.2,0.4324]
[1757512176252,0.291,4434.8,4434.5,0.1759]
[1757512176454,3.2078,4435.8,4434.7,3.6402]
[1757512176760,0.79519209,4435.4,4435.3,0.4324]
[1757512177958,0.29,4435.4,4435.3,4.4324]
[1757512178548,0.4436,4436.9,4435.5,0.40573]
[1757512178758,0.7946259,4436.8,4436.2,3.2078]
[1757512178961,0.9482259,4436.7,4436.2,3.2078]
[1757512179156,0.5046259,4436.6,4436.2,3.2078]
[1757512179353,0.7336,4436.8,4436.0,0.4324]
[1757512179659,0.6234,4436.6,4435.7,3.2078]
[1757512179958,0.4436,4436.1,4435.2,3.2078]
[1757512180159,0.79323491,4436.0,4435.2,3.2078]
[1757512180362,0.289,4436.0,4435.2,3.2078]
[1757512180559,0.4436,4435.8,4435.2,3.2078]
[1757512180858,0.683906,4435.9,4435.2,3.2078]
[1757512180859,0.504106,4435.7,4435.2,3.2078]
[1757512181059,0.504106,4435.6,4435.2,3.2078]
[1757512181363,0.4436,4435.4,4435.2,3.2078]
[1757512181751,0.4436,4435.4,4434.7,3.2078]
[1757512183058,32.491,4436.1,4435.3,3.2078]
[1757512183254,0.79200823,4436.0,4435.3,3.2078]
[1757512183446,32.491,4436.1,4435.3,3.2078]
[1757512183651,0.288,4436.0,4435.4,0.4324]
[1757512184256,32.491,4436.1,4435.8,3.2078]
[1757512184462,0.287,4436.4,4435.9,0.40569]
[1757512184656,0.287,4436.4,4435.9,0.4316]
[1757512184859,0.287,4436.4,4435.8,3.3731]
[1757512185259,0.4251,4437.4,4436.3,3.6394]
[1757512185564,0.287,4437.3,4436.3,3.6394]
[1757512186057,0.4251,4436.9,4436.3,3.2078]
[1757512186257,0.4251,4436.7,4436.3,3.6394]
[1757512186455,0.287,4436.8,4436.4,0.4316]
[1757512186651,0.287,4436.8,4436.3,3.2078]
[1757512187257,3.2078,4437.0,4436.4,0.4316]
[1757512187561,3.2078,4437.6,4436.4,0.5969]
[1757512187764,0.286,4437.5,4436.9,3.2078]
[1757512188357,0.286,4437.5,4436.9,3.6394]
[1757512188655,0.286,4437.4,4436.9,3.2078]
[1757512189267,32.485,4438.3,4437.1,0.4316]
[1757512189268,0.286,4437.5,4437.1,0.4316]
[1757512189462,0.286,4437.5,4437.4,3.6394]
[1757512190559,32.485,4438.3,4437.5,0.4316]
[1757512190560,0.285,4437.7,4437.5,0.4316]
[1757512190763,0.4251,4436.9,4434.4,3.2078]
[1757512190961,0.285,4437.7,4433.8,3.2078]
[1757512190962,0.4251,4434.5,4433.8,3.2078]
[1757512191163,0.176,4434.6,4432.1,3.2078]
[1757512191164,3.6329,4433.9,4432.1,3.2078]
[1757512191462,3.2078,4433.4,4432.1,3.4958]
[1757512191653,3.2078,4433.4,4432.2,2.99809648]
[1757512191855,3.2078,4433.7,4432.7,3.2078]
[1757512192259,3.2078,4433.2,4432.2,3.2078]
[1757512192454,0.2255,4433.1,4432.2,3.2078]
[1757512192856,0.4015,4433.1,4432.2,3.2078]
[1757512193561,3.2078,4432.5,4431.5,3.2078]
[1757512194261,3.2078,4432.4,4431.5,3.2078]
[1757512194466,0.4251,4432.3,4431.5,3.2078]
[1757512195072,3.3838,4432.4,4431.0,3.2078]
[1757512195370,3.2078,4431.4,4430.2,3.2078]
[1757512195558,0.4251,4431.2,4430.2,3.2078]
[1757512195762,3.2078,4430.6,4429.7,3.2078]
[1757512196072,0.287,4430.5,4429.8,0.3285]
[1757512196370,3.2078,4431.7,4430.4,3.2078]
[1757512196573,0.4251,4432.2,4431.2,3.2078]
[1757512197466,0.463,4432.4,4431.2,3.2078]
[1757512197467,0.4251,4432.3,4431.2,3.2078]
[1757512197658,3.2078,4431.3,4430.7,3.2078]
[1757512198264,3.2078,4432.1,4431.2,3.2078]
[1757512198574,3.4948,4432.1,4431.2,3.2078]
[1757512198874,0.287,4432.1,4431.8,3.2078]
[1757512199166,0.287,4433.0,4432.1,0.40604]
[1757512199370,0.2255,4433.1,4432.5,3.5363]
[1757512199570,0.2255,4433.1,4433.0,3.2078]
[1757512199767,0.7121,4433.6,4433.0,3.2078]
[1757512200665,3.2078,4433.8,4433.0,3.2078]
[1757512200858,0.4251,4434.3,4433.0,3.2078]
[1757512201058,0.4251,4433.6,4433.0,3.2078]
[1757512201269,0.286,4433.5,4433.0,3.2078]
[1757512201463,0.6011,4433.1,4431.9,3.2078]
[1757512201664,0.286,4433.0,4432.4,3.2078]
[1757512201863,0.286,4433.0,4432.4,3.5363]
[1757512202565,0.286,4433.0,4432.4,3.2078]
[1757512203164,0.4251,4432.9,4431.9,3.2078]
[1757512203470,0.286,4433.0,4432.1,0.3285]
[1757512203672,0.286,4433.6,4432.4,3.61381]
[1757512203871,0.6506,4433.7,4432.4,3.4938]
[1757512204071,0.2255,4433.7,4433.0,0.3285]
[1757512204260,0.2255,4433.7,4433.0,0.73445]
[1757512204464,3.3838,4433.1,4429.9,3.2078]
[1757512204666,3.6329,4430.7,4429.9,3.2078]
[1757512204970,3.6329,4430.1,4428.7,2.93678927]
[1757512205271,0.176,4431.0,4427.7,0.3285]
[1757512205272,3.2078,4428.9,4427.7,0.3285]
[1757512205569,3.2078,4428.3,4427.7,0.3285]
[1757512205769,3.2078,4428.3,4427.1,3.2078]
[1757512205974,3.2078,4428.3,4427.1,3.8243]
[1757512206165,0.288,4428.6,4427.1,3.8243]
[1757512206166,0.288,4428.6,4427.6,3.2078]
[1757512206372,0.288,4428.6,4427.7,0.3285]
[1757512206568,3.2078,4428.8,4427.7,0.3285]
[1757512206775,0.4251,4429.3,4427.7,0.3285]
[1757512206776,3.6329,4429.3,4428.1,3.2078]
[1757512206969,3.2078,4429.3,4428.3,0.3285]
[1757512207274,0.288,4429.5,4428.3,0.3285]
[1757512207476,3.2078,4429.3,4428.3,0.3285]
[1757512207778,0.288,4429.5,4428.6,3.2078]
[1757512207975,0.288,4429.5,4428.6,3.4948]
[1757512208176,0.7131,4429.5,4428.6,3.2078]
[1757512208372,3.2078,4429.3,4428.6,3.2078]
[1757512208771,3.2078,4429.3,4428.3,0.6155]
[1757512209265,3.2078,4429.3,4428.3,0.3285]
[1757512209466,3.2078,4429.8,4428.3,0.287]
[1757512209674,3.2078,4430.3,4429.1,0.3285]
[1757512210077,3.2078,4430.3,4429.2,0.287]
[1757512210872,3.2078,4430.3,4429.3,0.286]
[1757512211276,3.2078,4430.3,4429.4,0.3285]
[1757512211477,0.4251,4429.5,4429.1,0.286]
[1757512211675,0.4251,4429.5,4428.9,0.286]
[1757512211874,0.4251,4428.8,4427.8,3.2078]
[1757512212081,0.4251,4427.8,4426.4,3.2078]
[1757512212375,3.6329,4427.4,4426.4,3.2078]
[1757512212581,0.29,4427.7,4425.0,3.2078]
[1757512212582,0.4251,4426.4,4425.0,3.2078]
[1757512212772,0.4251,4426.4,4425.6,3.2078]
[1757512212773,0.289,4426.3,4425.6,3.2078]
[1757512214179,3.2078,4426.0,4425.1,3.2078]
[1757512214381,3.2078,4426.0,4424.6,3.2078]
[1757512214978,0.4616,4425.2,4424.1,3.2078]
[1757512215177,3.2078,4424.9,4424.1,3.2078]
[1757512215378,3.2078,4424.9,4423.5,3.2078]
[1757512215576,0.4616,4424.8,4423.5,3.2078]
[1757512215877,3.2078,4424.4,4423.5,3.2078]
[1757512216084,0.4616,4424.2,4423.5,3.2078]
[1757512216377,3.2078,4423.9,4423.0,3.2078]
[1757512216578,0.4616,4423.8,4423.0,3.2078]
[1757512216779,0.29,4423.7,4423.0,3.2078]
[1757512217209,3.2078,4423.9,4422.7,0.3453]
[1757512217478,0.4616,4424.3,4423.1,3.2078]
[1757512217678,0.29,4424.5,4423.6,3.2078]
[1757512217978,3.2078,4424.5,4423.7,0.3453]
[1757512218281,3.2078,4425.0,4424.3,3.2078]
[1757512218682,0.4616,4424.9,4424.3,3.2078]
[1757512218872,3.2078,4425.5,4424.3,3.4968]
[1757512219079,0.289,4425.4,4424.3,3.2078]
[1757512219582,0.289,4425.4,4424.4,3.31380363]
[1757512219972,0.6543,4426.2,4425.0,3.2078]
[1757512219973,0.289,4425.7,4425.0,3.2078]
[1757512220175,0.4616,4425.6,4425.0,3.2078]
[1757512220376,3.2078,4425.5,4424.7,3.2078]
[1757512220783,0.4616,4425.4,4424.2,3.2078]
[1757512220977,3.2078,4424.8,4423.7,3.5501]
[1757512221172,3.2078,4425.1,4423.7,3.5501]
[1757512221378,0.4616,4426.1,4425.0,3.2078]
[1757512221685,0.1927,4429.6,4426.0,3.2078]
[1757512221686,0.4616,4426.9,4426.0,3.2078]
[1757512221987,3.2078,4427.0,4426.0,3.2078]
[1757512222376,0.4616,4426.9,4426.0,3.2078]
[1757512222577,3.2078,4427.0,4426.1,3.27246748]
[1757512223081,3.2078,4427.0,4426.5,0.40655]
[1757512223287,0.288,4428.0,4426.7,3.2078]
[1757512223475,3.4958,4428.2,4427.2,3.2078]
[1757512223784,3.2078,4428.2,4427.2,3.2078]
[1757512223977,3.2078,4428.2,4427.3,0.3423]
[1757512224178,3.2078,4428.7,4427.4,0.287]
[1757512224378,0.287,4428.6,4427.4,0.287]
[1757512224584,0.287,4428.6,4427.7,3.2078]
[1757512224884,3.2078,4428.2,4426.7,3.2078]
[1757512225076,3.2078,4427.7,4426.5,0.3423]
[1757512225385,3.2078,4427.2,4426.5,0.3423]
[1757512226483,0.287,4427.6,4426.5,0.3423]
[1757512226686,3.2078,4427.7,4426.5,0.3423]
[1757512226886,3.2078,4427.7,4426.8,3.2078]
[1757512227087,0.286,4428.0,4427.1,0.40649]
[1757512227282,0.286,4428.0,4427.0,0.4065]
[1757512227488,0.286,4428.0,4427.3,3.2078]
[1757512227688,0.286,4428.0,4427.3,3.4938]
[1757512227886,0.2258,4428.1,4427.8,3.2078]
[1757512228277,0.6543,4428.0,4427.3,3.2078]
[1757512228482,0.4616,4427.5,4425.7,0.3423]
[1757512228682,0.4616,4426.5,4425.0,0.74898]
[1757512228887,0.4616,4426.5,4425.6,3.2078]
[1757512229092,0.7486,4426.5,4425.6,3.2078]
[1757512229490,3.2078,4427.1,4425.7,2.9872318]
[1757512229491,0.287,4426.8,4425.7,2.9872318]
[1757512229688,3.6694,4427.1,4425.7,2.9872318]
[1757512229889,3.9564,4427.1,4425.7,2.9872318]
[1757512230198,0.4616,4426.5,4425.6,3.2078]
[1757512230583,3.2078,4426.1,4425.1,0.287]
[1757512230993,3.2078,4426.1,4425.2,2.90474683]
[1757512231195,3.2078,4426.1,4425.1,0.287]
[1757512231388,0.4616,4425.5,4424.6,0.3423]
[1757512231588,0.4616,4425.5,4424.6,0.6283]
[1757512231995,0.4616,4425.5,4424.5,3.2078]
[1757512232494,3.4005,4425.6,4424.0,3.5501]
[1757512232694,3.2078,4424.5,4423.3,3.2078]
[1757512233000,0.286,4424.6,4423.7,0.40681]
[1757512233198,0.286,4425.1,4424.4,0.40674]
[1757512233394,0.286,4425.2,4424.4,3.2078]
[1757512233594,0.4616,4425.1,4424.3,3.2078]
[1757512233996,0.286,4425.2,4424.4,0.40674]
[1757512234304,0.286,4425.2,4424.3,3.2078]
[1757512234497,0.286,4425.2,4424.5,0.40673]
[1757512234894,0.4616,4425.3,4424.3,3.2078]
[1757512235200,0.7476,4425.6,4424.6,0.40672]
[1757512235503,0.7476,4425.6,4424.4,6.15123149]
[1757512235504,3.2078,4425.4,4424.4,3.2078]
[1757512235798,0.4616,4425.3,4424.4,3.2078]
[1757512235999,3.2078,4424.9,4423.9,0.40679]
[1757512236200,0.4616,4424.8,4423.8,3.4938]
[1757512236496,3.2078,4424.4,4423.8,3.2078]
[1757512236694,0.285,4425.3,4424.7,0.40672]
[1757512236995,3.2078,4425.4,4424.3,3.2078]
[1757512237295,3.2078,4425.4,4425.0,0.40669]
[1757512237502,3.2078,4425.4,4424.8,3.2078]
[1757512237704,3.2078,4426.1,4425.3,3.2078]
[1757512237997,3.2078,4425.4,4424.9,2.95262542]
[1757512238196,0.286,4425.3,4424.3,3.2078]
[1757512238395,0.286,4425.3,4423.4,0.286]
[1757512238396,0.286,4425.3,4424.4,0.4376]
[1757512238694,0.286,4425.3,4423.8,2.94493927]
[1757512238695,0.4616,4424.8,4423.8,2.94493927]
[1757512238895,0.1927,4425.6,4423.5,2.94493927]
[1757512238896,3.2078,4424.3,4423.5,2.94493927]
[1757512239104,3.2078,4423.8,4423.0,0.4376]
[1757512239693,0.286,4423.7,4423.0,0.4376]
[1757512240394,3.2078,4423.3,4422.7,3.2078]
[1757512240594,3.2078,4423.3,4422.4,0.5526]
[1757512240795,0.4616,4423.2,4422.3,0.286]
[1757512240998,0.286,4423.2,4422.3,0.286]
[1757512241201,0.4616,4423.1,4422.2,0.4376]
[1757512241701,0.286,4423.2,4421.5,0.4376]
[1757512241702,0.50810711,4423.0,4421.5,0.4376]
[1757512241901,0.4787,4423.2,4420.8,0.18]
[1757512241902,3.2078,4422.1,4420.9,0.4376]
[1757512242204,3.2078,4422.1,4421.0,0.4376]
[1757512242407,3.2078,4422.7,4421.0,0.4376]
[1757512242698,3.2078,4422.7,4421.1,6.16307178]
[1757512242699,0.285,4422.6,4421.1,6.16307178]
[1757512242898,0.285,4422.6,4419.4,0.1814936]
[1757512242899,3.2078,4421.2,4420.3,0.4376]
[1757512243099,3.2078,4421.3,4420.3,0.4376]
[1757512243297,3.6694,4421.1,4420.4,2.91991061]
[1757512243500,3.6694,4421.1,4419.8,3.2078]
[1757512243501,0.286,4421.0,4420.0,0.4376]
[1757512243899,3.2078,4420.4,4419.8,3.2078]
[1757512244100,0.4719,4420.2,4419.1,3.2078]
[1757512244402,3.2078,4419.8,4418.7,0.286]
[1757512244600,0.2261,4421.2,4420.6,0.40709]
[1757512244802,0.2261,4421.2,4420.6,3.2078]
[1757512244998,0.2261,4421.2,4420.5,0.429]
[1757512245190,0.2261,4421.2,4420.0,0.40715]
[1757512245396,0.4719,4420.5,4419.2,0.6113]
[1757512245593,0.286,4420.4,4419.2,0.6113]
[1757512245796,0.4719,4420.5,4419.2,0.6113]
[1757512246001,3.4339,4421.2,4420.1,0.40714]
[1757512246198,3.4339,4421.2,4420.2,0.429]
[1757512246394,0.2261,4421.2,4420.4,0.40712]
[1757512246602,0.2261,4421.2,4420.2,0.429]
[1757512246799,0.2261,4421.2,4420.7,3.2078]
[1757512247106,0.2261,4421.2,4420.9,0.429]
[1757512247398,0.2261,4421.2,4420.8,0.429]
[1757512247701,0.2261,4421.2,4418.7,3.2078]
[1757512247702,0.188,4420.8,4418.7,3.2078]
[1757512247902,3.6797,4420.2,4418.7,3.2078]
[1757512248101,0.287,4420.1,4419.2,3.2078]
[1757512248303,0.6599,4420.0,4418.7,3.2078]
[1757512248500,3.2078,4418.9,4418.1,0.429]
[1757512249000,0.4719,4419.3,4418.4,3.2078]
[1757512249202,0.286,4420.0,4419.1,3.2078]
[1757512250099,0.4719,4419.9,4419.1,3.2078]
[1757512250293,3.2078,4419.5,4418.8,0.429]
[1757512250500,3.2078,4419.5,4418.8,0.83626]
[1757512250700,0.4719,4419.9,4418.8,0.429]
[1757512250905,0.286,4420.5,4419.4,0.429]
[1757512251097,3.2078,4420.4,4419.4,0.429]
[1757512251299,0.4719,4420.3,4419.2,3.2078]
[1757512251505,0.4719,4419.7,4418.5,3.2078]
[1757512251803,0.4719,4419.7,4418.6,0.429]
[1757512252004,0.4719,4420.6,4419.4,3.2078]
[1757512252395,3.2078,4420.2,4419.4,3.2078]
[1757512252599,3.2078,4420.2,4419.3,0.429]
[1757512252804,3.2078,4420.2,4419.3,0.83621]
[1757512253008,3.2078,4420.2,4419.4,2.89410631]
[1757512253303,3.2078,4420.2,4419.3,0.429]
[1757512253502,0.4719,4420.1,4418.9,3.2078]
[1757512253809,3.2078,4419.7,4418.9,3.2078]
[1757512254105,0.287,4419.6,4418.4,3.2078]
[1757512254305,0.4719,4418.9,4417.9,3.2078]
[1757512254605,0.4719,4418.9,4417.8,0.429]
[1757512254606,0.4719,4418.9,4418.5,3.2078]
[1757512254806,0.7589,4419.7,4418.5,3.2078]
[1757512255003,3.2078,4419.4,4418.5,3.2078]
[1757512255203,3.2078,4419.4,4417.9,3.2078]
[1757512255401,3.2078,4418.1,4417.4,3.2078]
[1757512255606,3.2078,4417.5,4416.9,0.429]
[1757512255805,3.6797,4418.0,4416.9,0.429]
[1757512256010,0.287,4417.9,4416.9,0.429]
[1757512256200,3.6797,4418.0,4416.9,0.429]
[1757512256509,0.4719,4418.7,4417.5,0.429]
[1757512256711,0.4719,4418.7,4417.4,3.2078]
[1757512256712,3.2078,4419.2,4418.1,0.40732]
[1757512257006,3.2078,4419.2,4418.4,3.2078]
[1757512257207,3.2078,4419.2,4418.5,0.429]
[1757512257407,3.4948,4419.7,4418.6,0.40728]
[1757512257599,0.7589,4419.9,4419.0,3.2078]
[1757512258007,3.6797,4419.9,4418.5,0.429]
[1757512258209,0.4719,4419.9,4419.0,3.6368]
[1757512258805,0.188,4421.9,4418.9,0.69325]
[1757512258806,0.2261,4421.2,4420.3,0.429]
[1757512259012,0.2261,4421.2,4420.4,0.287]
[1757512259306,0.2261,4421.2,4420.3,0.429]
[1757512259702,0.2261,4421.2,4420.5,0.429]
[1757512259900,0.2261,4421.2,4421.0,0.40706]
[1757512260101,0.2261,4421.2,4421.1,0.715]
[1757512260301,0.2261,4421.2,4420.4,3.6368]
[1757512260707,0.2261,4421.2,4420.7,0.40708]
[1757512260914,0.2261,4421.2,4421.1,0.429]